{"text_format":"1","workbook":"xlsx","n_sheets":4,"sheets":["Liste d'élève","Notation","Récapitulatif des notes","Feuil1"],"not_rendered":{"charts":0,"images":2,"macros":1,"external_links":1,"defined_names":9,"comments":0,"pivot_tables":0},"unopened":[],"bounds":{"document_bytes":16777216,"sheet_cells":100000,"rows_first":2000,"rows_last":500,"rows_between":2000,"halvings":0,"cell_chars":16384,"cell_head_chars":4096},"cells_cut":0,"cells_raw":0,"read":"whole","date_system":"1900"}

{"sheet":"Liste d'élève","index":0,"n_rows":36,"n_cols":6,"rows_kept":36,"cut":false,"hidden":false,"merged":[[37,0,37,1]]}
["Noms et prénoms","Groupe",null,"Période",null,"Année"]
["A",1,null,"1er trimestre",null,"ACTIVEZ LES MACROS !"]
["B",null,null,"2nd trimestre"]
["C",null,null,"3ème trimestre","1°) Copiez la liste des élèves depuis PRONOTE (noms et prénoms accollés) : génère un fichier .csv"]
["D",null,null,"1er semestre"]
["E",null,null,"2nd semestre","2°) Puis ouvrez le fichier .csv sur une autre feuille : Recopiez la liste d'élèves"]
["F"]
["G",null,null,null,"3°) Puis collez la ICI en selectionnant la première cellule : Attention faire clic droit \"COLLAGE SPECIAL : FORMULE\""]
["H"]
["I"]
["J"]
["K"]
["L"]
["M"]
["N"]
["O"]
["P"]
["Q"]
["R"]
["S"]
["T"]
["U"]
["V"]
["W"]
["X"]
["Y"]
["Z"]
["A"]
["C"]
["E"]
["G"]
["I"]
["K"]
["M"]
["O"]
["Q"]

{"sheet":"Notation","index":1,"n_rows":48,"n_cols":10,"rows_kept":48,"cut":false,"hidden":false,"merged":[[0,0,0,7],[2,0,2,7],[4,0,4,7],[47,0,47,9],[46,0,46,9],[16,2,16,7],[14,0,14,1],[41,7,42,7],[41,0,42,1],[39,6,39,7],[41,2,42,2],[41,3,42,3],[41,4,42,4],[41,5,42,5],[41,6,42,6],[12,0,12,9],[14,7,15,7],[14,2,15,2],[44,0,44,9],[45,0,45,9],[7,5,9,9]]}
["SYSTÈMES NUMÉRIQUES\r"]
[]
[]
[]
["Ce document est à compléter par chaque professeur en fonction des fiches éditées avec Cerise.\nIl permet d’effectuer le suivi et l’évaluation du candidat en établissement de formation."]
[]
["Académie :","Nice"]
["Établissement :","LP Dolle",null,null,null,"Les formateurs doivent sélectionner le nom, l'année et la période dans le menu déroulant."]
["Nom et prénom :","A"]
["Année :","Terminale"]
["Période :","2nd semestre"]
[]
["GRILLE D'ÉVALUATION ET NOTATION"]
[]
["Evaluation",null,"Non évaluable","Pas de réussite","Réussite partielle","Réussite totale avec aide","Réussite totale en autonomie","Absent"]
[null,"Notation",null,0,0.5,0.75,1]
["Compétences évaluables","Pondération","Evaluations",null,null,null,null,null,"Note","/"]
["C1-1 = C1-1 Appréhender la mise en œuvre d’un projet simulé ou réel d’installation d’un système",1,{"$f":"IF(COUNTA(D18)+COUNTA(E18)+COUNTA(F18)+COUNTA(G18)+COUNTA(H18)>=1,\"\",\"x\")","v":""},null,null,null,"x",null,{"$f":"IF(COUNTA(D18)+COUNTA(E18)+COUNTA(F18)+COUNTA(G18)=1,J18*IF(D18<>\"\",$D$16,IF(E18<>\"\",$E$16,IF(F18<>\"\",$F$16,IF(G18<>\"\",$G$16,0)))),\"N Not\")","v":0.95238095238095233},{"$f":"B18/SUM($B$18:$B$38)*20","v":0.95238095238095233}]
["C2-1 Faire un bilan de l’existant et recueillir les informations relatives à l’exploitation et aux caractéristiques des matériels de l’installation",1,{"$f":"IF(COUNTA(D19)+COUNTA(E19)+COUNTA(F19)+COUNTA(G19)+COUNTA(H19)>=1,\"\",\"x\")","v":""},null,null,null,"x",null,{"$f":"IF(COUNTA(D19)+COUNTA(E19)+COUNTA(F19)+COUNTA(G19)=1,J19*IF(D19<>\"\",$D$16,IF(E19<>\"\",$E$16,IF(F19<>\"\",$F$16,IF(G19<>\"\",$G$16,0)))),\"N Not\")","v":0.95238095238095233},{"$f":"B19/SUM($B$18:$B$38)*20","v":0.95238095238095233}]
["C2-2 Analyser le fonctionnement de l’installation actuelle ou de l’équipement en vue de l’intervention",1,"",null,"x",null,null,null,0.47619047619047616,0.95238095238095233]
["C3-1 Planifier l’intervention",1,"","x",null,null,null,null,0,0.95238095238095233]
["C3-2 Réaliser l’intégration matérielle ou logicielle d’un équipement",1,"","x",null,null,null,null,0,0.95238095238095233]
["C3-3 Effectuer les tests nécessaires à la validation du fonctionnement des équipements",1,"",null,"x",null,null,null,0.47619047619047616,0.95238095238095233]
["C4-1 Préparer le plan d’action puis établir tout ou partie du plan d’implantation et de câblage",1,"",null,null,null,"x",null,0.95238095238095233,0.95238095238095233]
["C4-2 = C2-1 Repérer les supports de transmission et d’énergie, implanter, câbler, raccorder les appareillages et les équipements d’interconnexion",1,"","x",null,null,null,null,{"$f":"IF(COUNTA(D25)+COUNTA(E25)+COUNTA(F25)+COUNTA(G25)=1,J25*IF(D25<>\"\",$D$16,IF(E25<>\"\",$E$16,IF(F25<>\"\",$F$16,IF(G25<>\"\",$G$16,0)))),\"N Not\")","v":0},0.95238095238095233]
["C4-3 = C2-2 Effectuer les tests, certifier le support physique",1,"",null,null,null,"x",null,0.95238095238095233,0.95238095238095233]
["C4-4 Installer, configurer les éléments du système et vérifier la conformité du fonctionnement",1,"",null,null,null,"x",null,0.95238095238095233,0.95238095238095233]
["C5-1 Établir un pré diagnostic à distance",1,"","x",null,null,null,null,0,0.95238095238095233]
["C5-2 Vérifier la conformité du support et des alimentations en énergie, le fonctionnement des matériels et logiciels en interaction",1,"",null,"x",null,null,null,0.47619047619047616,0.95238095238095233]
["C5-3 Analyser et interpréter les indicateurs de fonctionnement et établir un diagnostic",1,"",null,null,null,"x",null,0.95238095238095233,0.95238095238095233]
["C5-4 Réaliser l’intervention",1,"",null,null,null,"x",null,0.95238095238095233,0.95238095238095233]
["C5-5 Vérifier la conformité du fonctionnement des matériels et logiciels identifiés puis de l’installation",1,"",null,null,"x",null,null,0.71428571428571419,0.95238095238095233]
["C5-6 Mettre à jour les documents relatant les historiques des interventions",1,"",null,null,null,"x",null,0.95238095238095233,0.95238095238095233]
["C6-1 Communiquer lors de l’intervention, déceler et mettre en évidence les besoins du client",1,"",null,null,null,"x",null,0.95238095238095233,0.95238095238095233]
["C6-2 = C3-1 S’intégrer à la démarche qualité du service et respecter les termes du contrat",1,"","x",null,null,null,null,0,0.95238095238095233]
["C6-3 Renseigner le rapport de recette ou le bon d’intervention",1,"",null,null,"x",null,null,0.71428571428571419,0.95238095238095233]
["C7-1 Gérer ses lots de matériel, son temps d’intervention et les ressources",1,"",null,null,null,null,"x","N Not",0.95238095238095233]
["C8-1 = C4-1 Adopter une attitude citoyenne et responsable dans le cadre de l’usage professionnel des outils numériques",1,"","x",null,null,null,null,0,0.95238095238095233]
[]
[null,null,null,null,null,null,"Note proposée",null,{"$f":"SUM(I18:I38)*20/SUM(IF(I18=\"N Not\",0,J18),IF(I19=\"N Not\",0,J19),IF(I20=\"N Not\",0,J20),IF(I21=\"N Not\",0,J21),IF(I22=\"N Not\",0,J22),IF(I23=\"N Not\",0,J23),IF(I24=\"N Not\",0,J24),IF(I25=\"N Not\",0,J25),IF(I26=\"N Not\",0,J26),IF(I27=\"N Not\",0,J27),IF(I28=\"N Not\",0,J28),IF(I29=\"N Not\",0,J29),IF(I30=\"N Not\",0,J30),IF(I31=\"N Not\",0,J31),IF(I32=\"N Not\",0,J32),IF(I33=\"N Not\",0,J33),IF(I34=\"N Not\",0,J34),IF(I35=\"N Not\",0,J35),IF(I36=\"N Not\",0,J36),IF(I37=\"N Not\",0,J37),IF(I38=\"N Not\",0,J38))","v":12},"/20"]
[]
["Vérifications",null,{"$f":"COUNTIF(C18:C38,\"x\")","v":0},6,3,2,9,1]
[]
[]
["Les formateurs peuvent modifier la notation par critère d'évaluation et la pondération par compétence (case jaune)."]
["Les formateurs devront cocher les résultats attendus proposées dans les situations d'évaluation. Pour cela, ils mettront un x dans la case correspondante à une des colonnes rouge, orange, vert clair et vert foncé.\r"]
["Si l'élève est absent, ils devront uniquement mettre un x dans la case absent. Si l'élève est absent dans le trimestre, la note obtenue sera N Not (Non Noté)."]
["Le résultat de la colonne \"Note\" s’obtient automatiquement par application de la pondération attribuée à la compétence. La \"note proposée\" se calcule automatiquement par addition des notes correspondantes à chacune des compétences."]

{"sheet":"Récapitulatif des notes","index":2,"n_rows":42,"n_cols":9,"rows_kept":42,"cut":false,"hidden":false,"merged":[[0,2,0,4],[0,5,0,6],[0,7,0,8]]}
[null,{"$f":"Notation!B8","v":"LP Dolle"},"Seconde",null,null,"Première",null,"Terminale"]
[null,"Nom et prénom","1er trimestre","2nd trimestre","3ème trimestre","1er semestre","2nd semestre","1er semestre","2nd semestre"]
[null,{"$f":"'Liste d''élève'!A2","v":"A"},null,null,null,12,null,null,12]
[null,{"$f":"'Liste d''élève'!A3","v":"B"},null,null,null,null,11.5,null,12]
[null,{"$f":"'Liste d''élève'!A4","v":"C"}]
[null,{"$f":"'Liste d''élève'!A5","v":"D"},11.5]
[null,{"$f":"'Liste d''élève'!A6","v":"E"}]
[null,{"$f":"'Liste d''élève'!A7","v":"F"}]
[null,{"$f":"'Liste d''élève'!A8","v":"G"}]
[null,{"$f":"'Liste d''élève'!A9","v":"H"}]
[null,{"$f":"'Liste d''élève'!A10","v":"I"}]
[null,{"$f":"'Liste d''élève'!A11","v":"J"}]
[null,{"$f":"'Liste d''élève'!A12","v":"K"}]
[null,{"$f":"'Liste d''élève'!A13","v":"L"}]
[null,{"$f":"'Liste d''élève'!A14","v":"M"}]
[null,{"$f":"'Liste d''élève'!A15","v":"N"}]
[null,{"$f":"'Liste d''élève'!A16","v":"O"}]
[null,{"$f":"'Liste d''élève'!A17","v":"P"}]
[null,{"$f":"'Liste d''élève'!A18","v":"Q"}]
[null,{"$f":"'Liste d''élève'!A19","v":"R"}]
[null,{"$f":"'Liste d''élève'!A20","v":"S"}]
[null,{"$f":"'Liste d''élève'!A21","v":"T"}]
[null,{"$f":"'Liste d''élève'!A22","v":"U"}]
[null,{"$f":"'Liste d''élève'!A23","v":"V"}]
[null,{"$f":"'Liste d''élève'!A24","v":"W"}]
[null,{"$f":"'Liste d''élève'!A25","v":"X"}]
[null,{"$f":"'Liste d''élève'!A26","v":"Y"}]
[null,{"$f":"'Liste d''élève'!A27","v":"Z"}]
[null,{"$f":"'Liste d''élève'!A28","v":"A"},null,null,null,12,null,null,12]
[null,{"$f":"'Liste d''élève'!A29","v":"C"},null,null,null,null,11.5]
[null,{"$f":"'Liste d''élève'!A30","v":"E"}]
[null,{"$f":"'Liste d''élève'!A31","v":"G"}]
[null,{"$f":"'Liste d''élève'!A32","v":"I"}]
[null,{"$f":"'Liste d''élève'!A33","v":"K"}]
[null,{"$f":"'Liste d''élève'!A34","v":"M"}]
[null,{"$f":"'Liste d''élève'!A35","v":"O"}]
[null,{"$f":"'Liste d''élève'!A36","v":"Q"}]
[]
[null,"Nom","E E",null,"Les cases des notes ne sont pas vérouillées pour permettre un copier/coller."]
[null,"Année","Seconde"]
[null,"Période","1er trimestre"]
[null,"Note",12]

{"sheet":"Feuil1","index":3,"n_rows":6,"n_cols":2,"rows_kept":6,"cut":false,"hidden":true,"merged":[]}
["annee","période"]
["Seconde","1er trimestre"]
["Première","2nd trimestre"]
["Terminale","3ème trimestre"]
[null,"1er semestre"]
[null,"2nd semestre"]